Cogmind - Beta 11.1 @@@ ROGUE MODE // 2022.04.30 @ 20:26:35 Player: Olga Result: Self-destructed Performance ------------- Evolutions (1) 500 Regions Visited (2) 400 Robots Destroyed (3) 15 Value Destroyed (30) 30 Prototype IDs (1) 20 Alien Tech Used (0) 0 Bonus (200) 200 TOTAL SCORE: 1165 Bonus ------- Pacifist 200 Cogmind --------- Core Integrity 123/400 Matter 300/300 Energy 100/100 System Corruption 4% Temperature Cool (0) Movement Core (50) Location -9/Materials Parts ------- > --- POWER (1) -------- (None) > --- PROPULSION (2) --- (None) > --- UTILITY (4) ------ (None) > --- WEAPON (2) ------- (None) > --- INVENTORY (5) ---- Light Ion Engine Light Treads Compact Wheel Compact Wheel Small Storage Unit Peak State ------------ > --- POWER ------------ Heavy Ion Engine > --- PROPULSION ------- Flight Unit > --- UTILITY ---------- (None) > --- WEAPON ----------- Assault Rifle > --- INVENTORY -------- Light Ion Engine Light Treads Compact Wheel Compact Wheel Small Storage Unit [Rating: 5] Favorites ----------- Power Heavy Ion Engine Engine Heavy Ion Engine Propulsion Flight Unit Flight Unit Flight Unit Utility None Weapon Assault Rifle Ballistic Gun Assault Rifle Build | -11 -10 -9 ------- Run | Scr Mat Mat Slots Evolved 2 | . . 2 Power . | . . . Propulsion . | . . . Utility 2 | . . 2 Weapon . | . . . Parts Attached 4 | 1 1 2 Power 1 | . . 1 Engine 1 | . . 1 Core . | . . . Reactor . | . . . Propulsion 1 | . 1 . Treads . | . . . Leg . | . . . Wheel . | . . . Hover . | . . . Flight 1 | . 1 . Utility . | . . . Device . | . . . Storage . | . . . Processor . | . . . Hackware . | . . . Protection . | . . . Artifact . | . . . Weapon 2 | 1 . 1 Energy Gun . | . . . Energy Cannon . | . . . Ballistic Gun 2 | 1 . 1 Ballistic Cannon . | . . . Launcher . | . . . Special Weapon . | . . . Impact Weapon . | . . . Slashing Weapon . | . . . Piercing Weapon . | . . . Special Melee Weapon . | . . . Unidentified Prototypes 1 | . . 1 Parts Lost 3 | . . 3 Power . | . . . Propulsion 1 | . . 1 Utility . | . . . Weapon 2 | . . 2 Highest Loss Streak 2 | . . 2 To Critical Strikes . | . . . Average Slot Usage (%) 13 | . 16 11 Flight 3 | . 2 3 Ballistic Gun 10 | . 14 7 Naked Turns 29 | . . 29 Heaviest Build 2 | 2 2 2 Greatest Support 4 | 3 4 4 Greatest Overweight (x) . | . . . Average Overweight (x) . | . . . Largest Inventory Capacity 5 | 5 5 5 Average Capacity 5 | 5 5 5 Most Carried 5 | 5 5 5 Average Carried 4 | 4 5 5 Final Capacity 5 | 5 5 5 Final Carried 5 | 5 5 5 Class Distribution -------------------- 100% | Mutant Dominant Class ---------------- Mutant | -10/Materials Mutant | -9/Materials Resources | -11 -10 -9 ----------- Run | Scr Mat Mat Matter Collected 222 | 200 . 22 Remotely . | . . . Salvage Created 37 | . . 37 Parts 6 | . . 6 Haulers Intercepted . | . . . Recyclers Shooed . | . . . Parts Field Recycled . | . . . Retrieved Matter . | . . . Parts Self-Destructed . | . . . Prevented . | . . . Kills | -11 -10 -9 ------- Run | Scr Mat Mat Combat Hostiles Destroyed 3 | . . 3 Guns 3 | . . 3 Classes Destroyed 1 | . . 1 Swarmer 3 | . . 3 Best Kill Streak 2 | . . 2 Combat Bots Only 2 | . . 2 Max Kills in Single Turn 1 | . . 1 Gunslinging . | . . . Exploded . | . . . Melee . | . . . Uniques/NPCs Destroyed . | . . . Combat | -11 -10 -9 -------- Run | Scr Mat Mat Damage Taken 549 | . 84 465 Core 331 | . 54 277 Absorbed by Shields . | . . . Core Remaining (%) 89 | 100 78 . Volleys Fired 23 | . . 23 Largest 1 | . . 1 Hottest 20 | . . 20 Shots Fired 23 | . . 23 Gun 23 | . . 23 Cannon . | . . . Launcher . | . . . Special . | . . . Kinetic 23 | . . 23 Thermal . | . . . Explosive . | . . . Electromagnetic . | . . . Robot Hit Streak 9 | . . 9 Robot Miss Streak 3 | . . 3 Penetration Max . | . . . Secondary Targets . | . . . Shots Hit Robots 17 | . . 17 Core Hits 7 | . . 7 Critical Kills . | . . . Critical Parts Destroyed . | . . . Critical Strikes . | . . . Melee Attacks . | . . . Impact . | . . . Slashing . | . . . Piercing . | . . . Sneak Attacks . | . . . Combat Hostiles . | . . . Follow-up Attacks . | . . . Damage Inflicted 201 | . 8 193 Guns 147 | . . 147 Cannons . | . . . Explosions . | . . . Melee . | . . . Ramming 54 | . 8 46 Kinetic 147 | . . 147 Thermal . | . . . Explosive . | . . . Electromagnetic . | . . . Impact . | . . . Slashing . | . . . Piercing . | . . . Highest Corruption 4 | . . 4 Average Corruption 3 | . . 3 Corruption Purged . | . . . Corruption Blocked . | . . . Effects 1 | . . 1 Energy Discharges 1 | . . 1 Overload Shots . | . . . Overflow Damage . | . . . Projectiles . | . . . Explosions . | . . . Melee . | . . . Knockbacks . | . . . Impact . | . . . Kinetic . | . . . Secondary . | . . . Self-Inflicted Damage 23 | . 4 19 Shots . | . . . Rammed 17 | . 2 15 Targets Rammed 17 | . 2 15 Kicked . | . . . Crushed . | . . . Highest Temperature 8 | . 8 1 Average Temperature 4 | . 8 1 Received Heat Transfer 168 | . 60 108 Siege Activations . | . . . Robots Corrupted . | . . . Combat Hostiles . | . . . Parts Fried . | . . . Impact Corruptions . | . . . Robots Melted . | . . . Combat Hostiles . | . . . Parts Melted . | . . . Heat Transferred . | . . . Parts Sabotaged . | . . . Parts Stolen . | . . . Parts Stripped . | . . . Power Chain Reactions . | . . . Missiles Intercepted . | . . . Alert | -11 -10 -9 ------- Run | Scr Mat Mat Peak Influence 109 | . 72 109 Initial 29 | . . 29 Average 49 | . 24 75 Maximum Alert Level . | . . . Low Security (%) 100 | 100 100 100 Level 1 . | . . . Level 2 . | . . . Level 3 . | . . . Level 4 . | . . . Level 5 . | . . . High Security . | . . . Max Security . | . . . Squads Dispatched 2 | . 1 1 Investigation . | . . . Extermination . | . . . Reinforcement 2 | . 1 1 Assault . | . . . Garrison . | . . . Intercept . | . . . Searches Triggered . | . . . Construction Impeded . | . . . Haulers Reinforced . | . . . Active Scanning Responses . | . . . Cargo Convoy Interrupts . | . . . Stealth | -11 -10 -9 --------- Run | Scr Mat Mat Distress Signals 1 | . 1 . Communications Jammed . | . . . Distress Signals . | . . . Times Spotted 19 | . 10 9 Peak Tracking Total 9 | . 9 7 Tactical Retreats 1 | . . 1 Traps | -11 -10 -9 ------- Run | Scr Mat Mat Traps Triggered . | . . . Indirectly . | . . . Trap Hack Attempts . | . . . Triggered . | . . . Disarmed . | . . . Reprogrammed . | . . . Reused . | . . . Traps Extracted . | . . . Installed . | . . . Triggered . | . . . Machines | -11 -10 -9 ---------- Run | Scr Mat Mat Machines Disabled . | . . . Max in Single Turn . | . . . Machines Sabotaged . | . . . Garrisons Compromised . | . . . Overloaded Fab Kills . | . . . Hacking | -11 -10 -9 --------- Run | Scr Mat Mat Machines Accessed 3 | . 3 . Terminals 2 | . 2 . Fabricators . | . . . Repair Stations 1 | . 1 . Recycling Units . | . . . Scanalyzers . | . . . Garrison Access . | . . . Total Hacks 7 | . 7 . Successful 3 | . 3 . Failed 4 | . 4 . Catastrophic 1 | . 1 . Database Lockouts . | . . . Manual 6 | . 6 . Terminals 6 | . 6 . Fabricators . | . . . Repair Stations 1 | . 1 . Recycling Units . | . . . Scanalyzers . | . . . Garrison Access . | . . . Terminal Hacks 1 | . 1 . Branch Access Points 1 | . 1 . Fabricator Hacks . | . . . Repair Station Hacks . | . . . Recycling Unit Hacks . | . . . Scanalyzer . | . . . Garrison Access Hacks . | . . . Unauthorized Hacks 2 | . 2 . Terminals 1 | . 1 . Assimilate 1 | . 1 . Fabricators . | . . . Repair Stations 1 | . 1 . Mechanics 1 | . 1 . Recycling Units . | . . . Scanalyzers . | . . . Garrison Access . | . . . Data Cores Recovered . | . . . Used . | . . . Hacking Detections 2 | . 2 . Full Trace Events . | . . . Feedback Events . | . . . Feedback Blocked . | . . . Robot Schematics Acquired . | . . . Robots Built . | . . . Authchips . | . . . Time . | . . . Total Robot Build Rating . | . . . Part Schematics Acquired . | . . . Parts Built . | . . . Authchips . | . . . Time . | . . . Total Part Build Rating . | . . . Parts Repaired . | . . . Time . | . . . Parts Recycled . | . . . Recycled Matter . | . . . Retrieved Matter . | . . . Retrieved Components . | . . . Parts Scanalyzed . | . . . Part Schematics Acquired . | . . . Parts Damaged . | . . . Bothacking | -11 -10 -9 ------------ Run | Scr Mat Mat Used RIF Installer . | . . . Robots Hacked . | . . . Non-combat . | . . . Combat . | . . . Robot Hacks Applied . | . . . Relay Couplers Released . | . . . Fabnet Peak Effective % . | . . . Robots Rewired . | . . . Allies Hacked . | . . . Hacks Repelled . | . . . Allies | -11 -10 -9 -------- Run | Scr Mat Mat Total Allies 1 | . 1 . Largest Group 1 | . 1 . Highest-Rated Group 9 | . 9 . Highest-Rated Ally 9 | . 9 . Total Orders . | . . . Ally Attacks . | . . . Total Damage . | . . . Kills . | . . . Allies Corrupted . | . . . Allies Melted . | . . . Intel | -11 -10 -9 ------- Run | Scr Mat Mat Robot Analysis Total . | . . . Derelict Logs Recovered . | . . . Drone Launches . | . . . Drone Recoveries . | . . . Exploration | -11 -10 -9 ------------- Run | Scr Mat Mat Turns Passed 206 | 4 99 103 Spaces Moved 286 | 3 195 88 Core 182 | 3 151 28 Treads . | . . . Legs . | . . . Wheels . | . . . Hover . | . . . Flight 104 | . 44 60 Fastest Speed 40 | 50 40 40 Average Speed 46 | 50 47 43 Slowest Speed 50 | 50 50 50 Overloaded Moves . | . . . Propulsion Burnouts . | . . . Robots Hopped 4 | . . 4 Cave-ins Triggered . | . . . Exploration Rate (%) 20 | 2 45 15 Regions Visited 2 Branch Regions . Pre-discovered Areas . | . . . Known Exits Taken . | . . . Unknown Exits Taken 2 | 1 1 . Scrap Searched . | . . . Spaces Dug . | . . . Terrain Destroyed . | . . . Melee . | . . . Projectile . | . . . AOE . | . . . Terrain Rammed . | . . . Walls Destroyed . | . . . Machines Disabled . | . . . Actions | -11 -10 -9 --------- Run | Scr Mat Mat Total 332 | 5 199 128 Wait 5 | . 2 3 Move 277 | 2 194 81 Hop 3 | . . 3 Pick Up 1 | 1 . . Fast Attach 4 | 1 1 2 Attach . | . . . Detach . | . . . Swap . | . . . Drop 2 | 1 . 1 Fire 23 | . . 23 Melee . | . . . Ram 17 | . 2 15 Kick . | . . . Crush . | . . . Escape Stasis . | . . . Rewire . | . . . Trap . | . . . Miscellaneous . | . . . Route ------- -11/Scrapyard -10/Materials (discovered 3 exits: [*Mat] / Min x2) -9/Materials History --------- Turn | Location | Event 1 | -11/Scrapyard | Released all parts (6) 3 | -11/Scrapyard | Discovered new exit (range 2) 5 | -11/Scrapyard | Entered Materials 19 | -10/Materials | Identified exit to Mines 98 | -10/Materials | Discovered new exit (range 15) 104 | -10/Materials | Entered another Materials area 104 | -9/Materials | Evolved 2 slots: Utility x2 182 | -9/Materials | Core integrity fell below 50% 207 | -9/Materials | Self-destructed Last Messages --------------- 00182_ Slammed into R-06 Scavenger. 00182_ Destabilizing: System corrupted (+2). 00183_ Slammed into R-06 Scavenger. 00184_ Destabilizing: System corrupted (+1). 00185_ Slammed into R-06 Scavenger. 00186_ System corrupted: Energy discharge (-28). 00186_ Slammed into R-06 Scavenger. 00195_ O-16 Technician: "IFF HANDSHAKE FAILED. SECURING TERMINAL." 00196_ Slammed into R-06 Scavenger. 00198_ K-01 Serf collects debris. 00199_ O-16 Technician uses terminal to summon reinforcements. 00199_ ALERT: Hostiles spotted, dispatching reinforcements to Terminal M012. 00199_ O-16 Technician locks terminal. 00200_ Slammed into R-06 Scavenger. 00200_ Destabilizing: System corrupted (+1). 00200_ K-01 Serf cleans the Terminal. 00201_ Slammed into R-06 Scavenger. 00201_ K-01 Serf collects debris. 00203_ Slammed into R-06 Scavenger. Map ----- +----------------------------------------------------+ | ??????????????????????????????????????????? | | ??????????????????????????????????????????? | | ??????????????????????????????????????????? | | ??????????????????????????????????????????? | | ??????????????????????????????????????????? | | ??????????????????????????????????????????? | | ??????????????????????????????????????????? | | ??????????????????????????????????????????? | | ??????????????????????????????????????????? | | ??????????????????????????????????????????? | | ??????????????????????????????????????????? | | ??????????????????????????? ??????????????? | | ??????????????????????????? ??????????????? | | ??????????????????????????? ??????????????? | | ??????????????????????????? ?????????????? | | ???????????????????????????? ?????????????? | | ???????????????????????????? ???????"?????? | | ???????????????????????????? ?????? ?????? | | ????????????????????????????# ?????? ?????? | | ????????????????????????????# ?????? ?????? | | ???????????????????????????## #?#+##+#####? | | ???????????????????????????# ## # ? | | ???????????????????????????# T / ??? | | ??????????????????#????????# #????? | | ??????????????????# ######## #????? | | ??????????????????# r @% % %% s #????? | | ??????????? ############## #????? | | ?????????? ???????????????????# #????? | | ???????????????????????????????????#%#????? | | ???????????????????????????????????# #????? | | ???????????????????????????######### #????? | | ??????????????????????????+ % #????? | | ???????????????????????????###### #????? | | ????????????????????????????????# #????? | | ????????????????????????????????# #????? | | ????????????????????????????????# #????? | | ??????????????????????????####### #????? | | ??????????????????????????+ #????? | | ??????????????????????????####### #????? | | ?????????????????########???????# #????? | | ?????????????????# #######?# #????? | | ?????????????????# # #?# #????? | | ?????????????????# """*# ### #????? | | ?????????????????# """ /% #????? | | ?????????????????# """ # # #????? | | ?????????????????# # # #????? | | ?????????????????########## ###!!==!!#????? | | ??????????????????????????# #?#!!==!!#????? | | ??????????????????????????# #?########????? | | ??????????????????????????# #?????????????? | +----------------------------------------------------+ Best States ------------- Heat Dissipation 28 Energy Generation 5 Energy Capacity 100 Matter Stores 300 Matter Capacity 300 Sight Range 16 Terrain Scan Density 10 Evasion (%) 62 Item Schematics ----------------- None Robot Schematics ------------------ None Fabricated ------------ Nothing Alien Tech Used ----------------- None Achievements -------------- None Challenges ------------ None Game ------ Seed CoordinationWaveInterrupter Manual? 0 Play Time 00:05:55 Cumulative 131.0 hours Start 2022.04.30 @ 20:22:24 End 2022.04.30 @ 20:26:35 Sessions 1 Manual Loads 0 Difficulty Rogue Special Mode None Game No. 172 Rogue 171 Adventurer 0 Explorer 1 Win Type - Total 5 Types 5/0/0/0/0/0/0/0/0 Lore% 59 Gallery% 59 Achievement% 50 Wizard Run 0 Options --------- ASCII 1 Keyboard 0 Movement Vi Keybinds 0 Fullscreen 1 Font 18/SmallcapsGlow Map View 76x50 Tactical HUD 1 Map Filters NONE Filters NONE Steam 1 RUN: 981c27f7-89e5-40fc-a70d-0136a83a498a